[Event "Titled Tuesday Blitz May 4 2021"]
[White "Priyanka, K"]
[Black "Podetti, Davide"]
[WhiteFideId "5082986"]
[BlackFideId "893617"]
[WhiteElo "1893"]
[BlackElo "2131"]
[Result "1-0"]
[Round "09"]
[TimeControl "180+1"]
[Date "2021.05.04"]
[WhiteClock "0:00:05"]
[BlackClock "0:00:43"]

1. e4 {[%clk 0:03:00]}  e5 {[%clk 0:02:55]} 2. Nf3 {[%clk 0:03:00]}  Nc6 {[%clk 0:02:55]} 3. Bb5 {[%clk 0:03:01]}  a6 {[%clk 0:02:53]} 4. Ba4 {[%clk 0:03:00]}  Nf6 {[%clk 0:02:52]} 5. d3 {[%clk 0:02:59]}  b5 {[%clk 0:02:53]} 6. Bb3 {[%clk 0:02:59]}  Bc5 {[%clk 0:02:53]} 7. Nc3 {[%clk 0:02:57]}  h6 {[%clk 0:02:53]} 8. Nd5 {[%clk 0:02:42]}  d6 {[%clk 0:02:53]} 9. c3 {[%clk 0:02:37]}  O-O {[%clk 0:02:50]} 10. Nxf6+ {[%clk 0:02:27]}  Qxf6 {[%clk 0:02:51]} 11. Bd5 {[%clk 0:02:27]}  Bd7 {[%clk 0:02:50]} 12. Rg1 {[%clk 0:02:27]}  Rad8 {[%clk 0:02:33]} 13. g4 {[%clk 0:02:25]}  Qg6 {[%clk 0:01:54]} 14. g5 {[%clk 0:02:03]}  Qh5 {[%clk 0:01:25]} 15. gxh6 {[%clk 0:01:57]}  g6 {[%clk 0:01:22]} 16. Rg5 {[%clk 0:01:15]}  Qxh6 {[%clk 0:01:19]} 17. Rg4 {[%clk 0:00:27]}  Qh3 {[%clk 0:00:54]} 18. Rxg6+ {[%clk 0:00:26]}  Kh7 {[%clk 0:00:51]} 19. Rh6+ {[%clk 0:00:17]}  Qxh6 {[%clk 0:00:50]} 20. Bxh6 {[%clk 0:00:17]}  Kxh6 {[%clk 0:00:50]} 21. Qd2+ {[%clk 0:00:17]}  Kh7 {[%clk 0:00:51]} 22. Qg5 {[%clk 0:00:14]}  f5 {[%clk 0:00:46]} 23. O-O-O {[%clk 0:00:09]}  Bxf2 {[%clk 0:00:43]} 24. Qh5+ {[%clk 0:00:06]}  Kg7 {[%clk 0:00:43]} 25. Rf1 {[%clk 0:00:06]}  Kf6 {[%clk 0:00:43]} 26. Qg5# {[%clk 0:00:05]} 1-0


[Site "https://www.chess.com"]

[Event "Titled Tuesday Blitz May 4 2021"]
[White "Prraneeth Vuppala"]
[Black "Velickovic, Zoran"]
[WhiteFideId "46622373"]
[BlackFideId "14601184"]
[WhiteElo "1759"]
[BlackElo "2342"]
[Result "1-0"]
[Round "09"]
[TimeControl "180+1"]
[Date "2021.05.04"]
[WhiteClock "0:00:53"]
[BlackClock "0:00:14"]

1. e4 {[%clk 0:03:00]}  c5 {[%clk 0:02:59]} 2. Nf3 {[%clk 0:02:58]}  g6 {[%clk 0:03:00]} 3. d4 {[%clk 0:02:57]}  cxd4 {[%clk 0:03:00]} 4. Nxd4 {[%clk 0:02:49]}  Bg7 {[%clk 0:03:00]} 5. c4 {[%clk 0:02:37]}  Nc6 {[%clk 0:03:00]} 6. Be3 {[%clk 0:02:23]}  Nf6 {[%clk 0:03:00]} 7. Nc3 {[%clk 0:02:21]}  Nxd4 {[%clk 0:03:00]} 8. Bxd4 {[%clk 0:02:20]}  Qa5 {[%clk 0:03:00]} 9. Qd2 {[%clk 0:02:05]}  Nxe4 {[%clk 0:03:00]} 10. Qe3 {[%clk 0:01:40]}  Bxd4 {[%clk 0:02:55]} 11. Qxd4 {[%clk 0:01:38]}  Nf6 {[%clk 0:02:53]} 12. O-O-O {[%clk 0:01:37]}  O-O {[%clk 0:02:49]} 13. Bd3 {[%clk 0:01:33]}  d6 {[%clk 0:02:47]} 14. h4 {[%clk 0:01:33]}  h5 {[%clk 0:02:10]} 15. f3 {[%clk 0:01:30]}  Bf5 {[%clk 0:02:05]} 16. g4 {[%clk 0:01:29]}  hxg4 {[%clk 0:02:01]} 17. h5 {[%clk 0:01:28]}  Bxd3 {[%clk 0:01:10]} 18. Rxd3 {[%clk 0:01:17]}  Qg5+ {[%clk 0:00:32]} 19. Kb1 {[%clk 0:01:11]}  gxh5 {[%clk 0:00:16]} 20. fxg4 {[%clk 0:01:07]}  hxg4 {[%clk 0:00:15]} 21. Ne4 {[%clk 0:00:55]}  Nxe4 {[%clk 0:00:14]} 22. Qh8# {[%clk 0:00:53]} 1-0


[Site "https://www.chess.com"]

[Event "Titled Tuesday Blitz May 4 2021"]
[White "Prydun, Andriy"]
[Black "Matthiesen, Martin"]
[WhiteFideId "14145898"]
[BlackFideId "1404067"]
[WhiteElo "2033"]
[BlackElo "2337"]
[Result "1-0"]
[Round "09"]
[TimeControl "180+1"]
[Date "2021.05.04"]
[WhiteClock "0:01:28"]
[BlackClock "0:00:13"]

1. d4 {[%clk 0:02:30]}  Nf6 {[%clk 0:02:58]} 2. Nc3 {[%clk 0:02:29]}  d5 {[%clk 0:02:58]} 3. Bf4 {[%clk 0:02:27]}  c5 {[%clk 0:02:58]} 4. e3 {[%clk 0:02:27]}  cxd4 {[%clk 0:02:58]} 5. exd4 {[%clk 0:02:27]}  a6 {[%clk 0:02:58]} 6. Bd3 {[%clk 0:02:25]}  Nc6 {[%clk 0:02:56]} 7. Nf3 {[%clk 0:02:22]}  Bg4 {[%clk 0:02:52]} 8. Be5 {[%clk 0:02:14]}  e6 {[%clk 0:02:49]} 9. h3 {[%clk 0:02:10]}  Bxf3 {[%clk 0:02:44]} 10. Qxf3 {[%clk 0:02:11]}  Nxe5 {[%clk 0:02:44]} 11. dxe5 {[%clk 0:02:11]}  Nd7 {[%clk 0:02:44]} 12. Qg3 {[%clk 0:02:10]}  Qc7 {[%clk 0:01:48]} 13. f4 {[%clk 0:02:00]}  g6 {[%clk 0:01:45]} 14. a3 {[%clk 0:01:58]}  Qb6 {[%clk 0:01:08]} 15. Rb1 {[%clk 0:01:50]}  Be7 {[%clk 0:01:02]} 16. Ne2 {[%clk 0:01:42]}  O-O {[%clk 0:00:59]} 17. h4 {[%clk 0:01:38]}  Nc5 {[%clk 0:00:27]} 18. h5 {[%clk 0:01:34]}  Nxd3+ {[%clk 0:00:25]} 19. cxd3 {[%clk 0:01:34]}  Rac8 {[%clk 0:00:17]} 20. Qh3 {[%clk 0:01:32]}  Qa5+ {[%clk 0:00:13]} 21. b4 {[%clk 0:01:31]}  Qxa3 {[%clk 0:00:13]} 22. hxg6 {[%clk 0:01:30]}  Bxb4+ {[%clk 0:00:13]} 23. Kf1 {[%clk 0:01:28]} 1-0


[Site "https://www.chess.com"]

[Event "Titled Tuesday Blitz May 4 2021"]
[White "Quirke, Jeffrey"]
[Black "davigator"]
[WhiteFideId "2013029"]
[WhiteElo "2246"]
[BlackElo "2403"]
[Result "0-1"]
[Round "09"]
[TimeControl "180+1"]
[Date "2021.05.04"]
[WhiteClock "0:00:30"]
[BlackClock "0:01:23"]

1. d4 {[%clk 0:03:00]}  Nf6 {[%clk 0:02:38]} 2. c4 {[%clk 0:03:00]}  e6 {[%clk 0:02:37]} 3. Nc3 {[%clk 0:03:00]}  Bb4 {[%clk 0:02:37]} 4. Qc2 {[%clk 0:03:01]}  c5 {[%clk 0:02:36]} 5. dxc5 {[%clk 0:03:01]}  Nc6 {[%clk 0:02:36]} 6. Nf3 {[%clk 0:02:52]}  h6 {[%clk 0:02:36]} 7. Bf4 {[%clk 0:02:46]}  Bxc5 {[%clk 0:02:34]} 8. a3 {[%clk 0:02:46]}  Nh5 {[%clk 0:02:33]} 9. Bg3 {[%clk 0:02:44]}  O-O {[%clk 0:02:32]} 10. Rd1 {[%clk 0:02:42]}  b6 {[%clk 0:02:30]} 11. e3 {[%clk 0:02:41]}  Bb7 {[%clk 0:02:26]} 12. Be2 {[%clk 0:02:41]}  Rc8 {[%clk 0:02:22]} 13. O-O {[%clk 0:02:34]}  a6 {[%clk 0:02:15]} 14. Bd6 {[%clk 0:02:27]}  Bxd6 {[%clk 0:02:13]} 15. Rxd6 {[%clk 0:02:27]}  Nf6 {[%clk 0:02:12]} 16. Rfd1 {[%clk 0:02:25]}  Qc7 {[%clk 0:02:11]} 17. b4 {[%clk 0:02:13]}  Nb8 {[%clk 0:02:10]} 18. Qb3 {[%clk 0:01:58]}  Kh8 {[%clk 0:02:02]} 19. Ne5 {[%clk 0:01:50]}  Ne8 {[%clk 0:01:45]} 20. Rxd7 {[%clk 0:01:12]}  Nxd7 {[%clk 0:01:44]} 21. Rxd7 {[%clk 0:01:10]}  Qxe5 {[%clk 0:01:44]} 22. Rxb7 {[%clk 0:01:10]}  b5 {[%clk 0:01:40]} 23. c5 {[%clk 0:01:05]}  Nd6 {[%clk 0:01:39]} 24. Ra7 {[%clk 0:00:51]}  Nc4 {[%clk 0:01:31]} 25. Rxa6 {[%clk 0:00:43]}  Rcd8 {[%clk 0:01:29]} 26. Bxc4 {[%clk 0:00:30]}  bxc4 {[%clk 0:01:26]} 27. Qxc4 {[%clk 0:00:30]}  Qxc3 {[%clk 0:01:23]} 0-1


[Site "https://www.chess.com"]

[Event "Titled Tuesday Blitz May 4 2021"]
[White "Rakotomaharo, Fy Antenaina"]
[Black "Trost, Edvin"]
[WhiteFideId "13100050"]
[BlackFideId "1729519"]
[WhiteElo "2378"]
[BlackElo "2028"]
[Result "1-0"]
[Round "09"]
[TimeControl "180+1"]
[Date "2021.05.04"]
[WhiteClock "0:01:12"]
[BlackClock "0:00:29"]

1. e4 {[%clk 0:03:00]}  g6 {[%clk 0:02:59]} 2. d4 {[%clk 0:02:58]}  Nf6 {[%clk 0:02:59]} 3. e5 {[%clk 0:02:58]}  Nh5 {[%clk 0:02:57]} 4. Bb5 {[%clk 0:02:54]}  c6 {[%clk 0:02:51]} 5. Be2 {[%clk 0:02:53]}  d6 {[%clk 0:02:51]} 6. Bxh5 {[%clk 0:02:51]}  gxh5 {[%clk 0:02:52]} 7. Qxh5 {[%clk 0:02:51]}  dxe5 {[%clk 0:02:52]} 8. dxe5 {[%clk 0:02:52]}  Rg8 {[%clk 0:02:50]} 9. Nc3 {[%clk 0:02:41]}  Rxg2 {[%clk 0:02:47]} 10. Nge2 {[%clk 0:02:35]}  Bg4 {[%clk 0:02:38]} 11. Qxh7 {[%clk 0:02:35]}  Nd7 {[%clk 0:02:26]} 12. Nf4 {[%clk 0:02:23]}  Bf3 {[%clk 0:01:36]} 13. Nxg2 {[%clk 0:02:18]}  Bxg2 {[%clk 0:01:36]} 14. Rg1 {[%clk 0:02:18]}  Bf3 {[%clk 0:01:34]} 15. e6 {[%clk 0:02:13]}  Ne5 {[%clk 0:01:13]} 16. Rg8 {[%clk 0:02:05]}  fxe6 {[%clk 0:00:30]} 17. Rxf8+ {[%clk 0:01:55]}  Kxf8 {[%clk 0:00:31]} 18. Qh8+ {[%clk 0:01:55]}  Kf7 {[%clk 0:00:32]} 19. Qxe5 {[%clk 0:01:55]}  Bd5 {[%clk 0:00:32]} 20. Bf4 {[%clk 0:01:50]}  Qb6 {[%clk 0:00:31]} 21. O-O-O {[%clk 0:01:50]}  Rg8 {[%clk 0:00:31]} 22. Qh5+ {[%clk 0:01:49]}  Kf8 {[%clk 0:00:31]} 23. Bh6+ {[%clk 0:01:49]}  Rg7 {[%clk 0:00:32]} 24. Bxg7+ {[%clk 0:01:44]}  Kxg7 {[%clk 0:00:33]} 25. Rg1+ {[%clk 0:01:44]}  Kf8 {[%clk 0:00:34]} 26. Qh8+ {[%clk 0:01:38]}  Kf7 {[%clk 0:00:35]} 27. Qg8+ {[%clk 0:01:27]}  Kf6 {[%clk 0:00:36]} 28. Qg7+ {[%clk 0:01:14]}  Kf5 {[%clk 0:00:29]} 29. Qg5# {[%clk 0:01:12]} 1-0


[Site "https://www.chess.com"]

[Event "Titled Tuesday Blitz May 4 2021"]
[White "Ranindu2003"]
[Black "Ognean, Mihnea-Ionut"]
[BlackFideId "1232347"]
[WhiteElo "2571"]
[BlackElo "2012"]
[Result "0-1"]
[Round "09"]
[TimeControl "180+1"]
[Date "2021.05.04"]
[WhiteClock "0:00:07"]
[BlackClock "0:00:08"]

1. e4 {[%clk 0:03:00]}  c5 {[%clk 0:02:59]} 2. Nf3 {[%clk 0:02:58]}  Nc6 {[%clk 0:02:59]} 3. d4 {[%clk 0:02:57]}  cxd4 {[%clk 0:03:00]} 4. c3 {[%clk 0:02:58]}  Nf6 {[%clk 0:02:55]} 5. e5 {[%clk 0:02:56]}  Nd5 {[%clk 0:02:55]} 6. cxd4 {[%clk 0:02:56]}  d6 {[%clk 0:02:55]} 7. Bc4 {[%clk 0:02:56]}  dxe5 {[%clk 0:02:52]} 8. dxe5 {[%clk 0:02:50]}  Ndb4 {[%clk 0:02:52]} 9. Qb3 {[%clk 0:02:45]}  e6 {[%clk 0:02:48]} 10. O-O {[%clk 0:02:44]}  Na5 {[%clk 0:02:36]} 11. Bb5+ {[%clk 0:02:21]}  Bd7 {[%clk 0:02:36]} 12. Qa4 {[%clk 0:02:19]}  Bxb5 {[%clk 0:01:55]} 13. Qxb5+ {[%clk 0:02:20]}  Nac6 {[%clk 0:01:55]} 14. a3 {[%clk 0:02:03]}  Qd5 {[%clk 0:01:44]} 15. Qxd5 {[%clk 0:01:52]}  Nxd5 {[%clk 0:01:45]} 16. b4 {[%clk 0:01:50]}  Be7 {[%clk 0:01:44]} 17. Bb2 {[%clk 0:01:50]}  O-O {[%clk 0:01:44]} 18. Nbd2 {[%clk 0:01:51]}  Rfd8 {[%clk 0:01:43]} 19. Ne4 {[%clk 0:01:50]}  Nf4 {[%clk 0:01:38]} 20. Rfd1 {[%clk 0:01:49]}  Nd3 {[%clk 0:01:15]} 21. Bc3 {[%clk 0:01:48]}  Rd5 {[%clk 0:01:13]} 22. g3 {[%clk 0:01:32]}  Rad8 {[%clk 0:01:11]} 23. Rd2 {[%clk 0:01:14]}  Ndxe5 {[%clk 0:01:08]} 24. Nxe5 {[%clk 0:01:13]}  Rxd2 {[%clk 0:00:48]} 25. Bxd2 {[%clk 0:00:56]}  Nxe5 {[%clk 0:00:48]} 26. Bf4 {[%clk 0:00:56]}  Nc4 {[%clk 0:00:45]} 27. Kf1 {[%clk 0:00:23]}  h6 {[%clk 0:00:41]} 28. Ke2 {[%clk 0:00:23]}  g5 {[%clk 0:00:33]} 29. Be3 {[%clk 0:00:21]}  a6 {[%clk 0:00:32]} 30. Bc5 {[%clk 0:00:19]}  Kf8 {[%clk 0:00:28]} 31. a4 {[%clk 0:00:18]}  f5 {[%clk 0:00:22]} 32. Bxe7+ {[%clk 0:00:16]}  Kxe7 {[%clk 0:00:23]} 33. Nc5 {[%clk 0:00:17]}  Nd6 {[%clk 0:00:22]} 34. Rc1 {[%clk 0:00:16]}  Rc8 {[%clk 0:00:21]} 35. Kd2 {[%clk 0:00:16]}  g4 {[%clk 0:00:16]} 36. Rb1 {[%clk 0:00:13]}  b5 {[%clk 0:00:12]} 37. axb5 {[%clk 0:00:13]}  axb5 {[%clk 0:00:12]} 38. Ra1 {[%clk 0:00:13]}  Nc4+ {[%clk 0:00:12]} 39. Kc3 {[%clk 0:00:13]}  Rc7 {[%clk 0:00:13]} 40. Ra8 {[%clk 0:00:12]}  Nd6 {[%clk 0:00:13]} 41. Rh8 {[%clk 0:00:10]}  Nf7 {[%clk 0:00:13]} 42. Ra8 {[%clk 0:00:09]}  Kf6 {[%clk 0:00:13]} 43. Ra5 {[%clk 0:00:07]}  Nd6 {[%clk 0:00:12]} 44. Kd4 {[%clk 0:00:07]}  Ke7 {[%clk 0:00:09]} 45. Ra6 {[%clk 0:00:07]}  h5 {[%clk 0:00:08]} 0-1


[Site "https://www.chess.com"]

[Event "Titled Tuesday Blitz May 4 2021"]
[White "Rios Parra, Alejandro"]
[Black "Bugayev, Vladimir"]
[WhiteFideId "4400348"]
[BlackFideId "30901480"]
[WhiteElo "2188"]
[BlackElo "2329"]
[Result "1-0"]
[Round "09"]
[TimeControl "180+1"]
[Date "2021.05.04"]
[WhiteClock "0:00:55"]
[BlackClock "0:00:36"]

1. e4 {[%clk 0:03:00]}  c6 {[%clk 0:02:59]} 2. d4 {[%clk 0:03:00]}  d5 {[%clk 0:02:56]} 3. Nc3 {[%clk 0:03:00]}  dxe4 {[%clk 0:02:55]} 4. Nxe4 {[%clk 0:02:59]}  Nf6 {[%clk 0:02:56]} 5. Nxf6+ {[%clk 0:02:58]}  exf6 {[%clk 0:02:57]} 6. Bc4 {[%clk 0:02:58]}  Na6 {[%clk 0:02:55]} 7. Qe2+ {[%clk 0:02:55]}  Be7 {[%clk 0:02:54]} 8. Be3 {[%clk 0:02:48]}  Nc7 {[%clk 0:02:52]} 9. O-O-O {[%clk 0:02:47]}  Be6 {[%clk 0:02:50]} 10. Bb3 {[%clk 0:02:46]}  Bxb3 {[%clk 0:02:25]} 11. axb3 {[%clk 0:02:44]}  O-O {[%clk 0:02:26]} 12. Nf3 {[%clk 0:02:42]}  a5 {[%clk 0:02:26]} 13. Kb1 {[%clk 0:02:36]}  a4 {[%clk 0:02:25]} 14. bxa4 {[%clk 0:02:33]}  Rxa4 {[%clk 0:02:24]} 15. c3 {[%clk 0:02:25]}  Qa8 {[%clk 0:02:15]} 16. Kc2 {[%clk 0:02:21]}  Ra2 {[%clk 0:02:10]} 17. Qc4 {[%clk 0:02:20]}  Nb5 {[%clk 0:01:46]} 18. Qb3 {[%clk 0:02:03]}  Qa6 {[%clk 0:01:32]} 19. Kd2 {[%clk 0:01:53]}  Ra8 {[%clk 0:01:18]} 20. Ne1 {[%clk 0:01:52]}  Qb6 {[%clk 0:00:56]} 21. Nc2 {[%clk 0:01:41]}  Qc7 {[%clk 0:00:55]} 22. g3 {[%clk 0:01:30]}  g5 {[%clk 0:00:52]} 23. Ra1 {[%clk 0:01:29]}  Rxa1 {[%clk 0:00:52]} 24. Rxa1 {[%clk 0:01:27]}  Rd8 {[%clk 0:00:52]} 25. Ke2 {[%clk 0:01:18]}  Qd7 {[%clk 0:00:51]} 26. Kf1 {[%clk 0:01:08]}  Qh3+ {[%clk 0:00:48]} 27. Kg1 {[%clk 0:01:07]}  Nd6 {[%clk 0:00:47]} 28. Ra7 {[%clk 0:01:02]}  Bf8 {[%clk 0:00:42]} 29. c4 {[%clk 0:00:58]}  Re8 {[%clk 0:00:41]} 30. c5 {[%clk 0:00:58]}  Nf5 {[%clk 0:00:41]} 31. Rxb7 {[%clk 0:00:57]}  h5 {[%clk 0:00:36]} 32. Qxf7+ {[%clk 0:00:55]}  Kh8 {[%clk 0:00:36]} 33. Qh7# {[%clk 0:00:55]} 1-0


[Site "https://www.chess.com"]

[Event "Titled Tuesday Blitz May 4 2021"]
[White "Roebers, Jan"]
[Black "Garcia Fuentes, Sergio Miguel"]
[WhiteFideId "1007815"]
[BlackFideId "7300549"]
[WhiteElo "2202"]
[BlackElo "2167"]
[Result "0-1"]
[Round "09"]
[TimeControl "180+1"]
[Date "2021.05.04"]
[WhiteClock "0:00:05"]
[BlackClock "0:00:05"]

1. e4 {[%clk 0:03:00]}  c5 {[%clk 0:02:59]} 2. Nf3 {[%clk 0:03:00]}  e6 {[%clk 0:02:59]} 3. d4 {[%clk 0:02:58]}  cxd4 {[%clk 0:03:00]} 4. c3 {[%clk 0:02:58]}  dxc3 {[%clk 0:02:59]} 5. Nxc3 {[%clk 0:02:58]}  a6 {[%clk 0:02:59]} 6. Bc4 {[%clk 0:02:57]}  b5 {[%clk 0:03:00]} 7. Bb3 {[%clk 0:02:57]}  Nc6 {[%clk 0:03:00]} 8. Qe2 {[%clk 0:02:56]}  Nge7 {[%clk 0:03:01]} 9. O-O {[%clk 0:02:53]}  Ng6 {[%clk 0:03:00]} 10. Bg5 {[%clk 0:02:48]}  Be7 {[%clk 0:02:50]} 11. Bxe7 {[%clk 0:02:45]}  Qxe7 {[%clk 0:02:50]} 12. e5 {[%clk 0:02:41]}  O-O {[%clk 0:02:44]} 13. Rfe1 {[%clk 0:02:38]}  f5 {[%clk 0:02:21]} 14. exf6 {[%clk 0:02:36]}  Qxf6 {[%clk 0:02:15]} 15. Rad1 {[%clk 0:02:34]}  d5 {[%clk 0:01:56]} 16. a3 {[%clk 0:01:50]}  Nf4 {[%clk 0:01:48]} 17. Qe3 {[%clk 0:01:43]}  Bd7 {[%clk 0:01:38]} 18. g3 {[%clk 0:01:40]}  Ng6 {[%clk 0:01:13]} 19. Nd4 {[%clk 0:01:33]}  Nxd4 {[%clk 0:00:57]} 20. Qxd4 {[%clk 0:01:33]}  Qxd4 {[%clk 0:00:42]} 21. Rxd4 {[%clk 0:01:32]}  Rae8 {[%clk 0:00:40]} 22. f4 {[%clk 0:01:24]}  Ne7 {[%clk 0:00:36]} 23. Rdd1 {[%clk 0:01:11]}  Nc6 {[%clk 0:00:35]} 24. Ne4 {[%clk 0:00:52]}  Na5 {[%clk 0:00:32]} 25. Ba2 {[%clk 0:00:46]}  Nc4 {[%clk 0:00:31]} 26. Nc5 {[%clk 0:00:37]}  Bc8 {[%clk 0:00:28]} 27. Re2 {[%clk 0:00:30]}  Kf7 {[%clk 0:00:19]} 28. Rde1 {[%clk 0:00:29]}  Re7 {[%clk 0:00:18]} 29. f5 {[%clk 0:00:22]}  e5 {[%clk 0:00:16]} 30. Bxc4 {[%clk 0:00:20]}  bxc4 {[%clk 0:00:13]} 31. Rxe5 {[%clk 0:00:19]}  Rfe8 {[%clk 0:00:12]} 32. Rxe7+ {[%clk 0:00:17]}  Rxe7 {[%clk 0:00:13]} 33. Rxe7+ {[%clk 0:00:17]}  Kxe7 {[%clk 0:00:14]} 34. Kf2 {[%clk 0:00:16]}  Kd6 {[%clk 0:00:11]} 35. Na4 {[%clk 0:00:15]}  Bxf5 {[%clk 0:00:12]} 36. Ke3 {[%clk 0:00:14]}  Ke5 {[%clk 0:00:10]} 37. Nc5 {[%clk 0:00:13]}  d4+ {[%clk 0:00:10]} 38. Kd2 {[%clk 0:00:12]}  Bc8 {[%clk 0:00:09]} 39. b4 {[%clk 0:00:10]}  Kd5 {[%clk 0:00:06]} 40. h4 {[%clk 0:00:08]}  c3+ {[%clk 0:00:06]} 41. Kc2 {[%clk 0:00:05]}  Kc4 {[%clk 0:00:05]} 0-1


[Site "https://www.chess.com"]

[Event "Titled Tuesday Blitz May 4 2021"]
[White "Ronka, Erik"]
[Black "Wu, Christopher"]
[WhiteFideId "505080"]
[BlackFideId "2040875"]
[WhiteElo "2264"]
[BlackElo "2613"]
[Result "0-1"]
[Round "09"]
[TimeControl "180+1"]
[Date "2021.05.04"]
[WhiteClock "0:00:03"]
[BlackClock "0:01:15"]

1. d4 {[%clk 0:03:00]}  Nf6 {[%clk 0:02:59]} 2. c4 {[%clk 0:03:01]}  e6 {[%clk 0:02:59]} 3. Nc3 {[%clk 0:03:01]}  Bb4 {[%clk 0:03:00]} 4. a3 {[%clk 0:03:02]}  Bxc3+ {[%clk 0:03:00]} 5. bxc3 {[%clk 0:03:03]}  O-O {[%clk 0:03:00]} 6. f3 {[%clk 0:03:03]}  c5 {[%clk 0:03:00]} 7. e4 {[%clk 0:03:03]}  d6 {[%clk 0:03:00]} 8. Bd3 {[%clk 0:03:03]}  e5 {[%clk 0:03:00]} 9. Ne2 {[%clk 0:03:03]}  Nc6 {[%clk 0:03:00]} 10. O-O {[%clk 0:03:03]}  b6 {[%clk 0:02:59]} 11. f4 {[%clk 0:03:02]}  cxd4 {[%clk 0:02:49]} 12. fxe5 {[%clk 0:02:57]}  dxe5 {[%clk 0:02:50]} 13. Bg5 {[%clk 0:02:51]}  Bg4 {[%clk 0:02:40]} 14. Bxf6 {[%clk 0:02:48]}  gxf6 {[%clk 0:02:39]} 15. Qe1 {[%clk 0:02:24]}  dxc3 {[%clk 0:02:27]} 16. Qg3 {[%clk 0:02:08]}  Kh8 {[%clk 0:02:27]} 17. Kh1 {[%clk 0:01:03]}  Bxe2 {[%clk 0:01:59]} 18. Bxe2 {[%clk 0:01:04]}  Rg8 {[%clk 0:01:58]} 19. Qxc3 {[%clk 0:00:58]}  Nd4 {[%clk 0:01:55]} 20. Bh5 {[%clk 0:00:51]}  Rg7 {[%clk 0:01:45]} 21. Rf2 {[%clk 0:00:34]}  f5 {[%clk 0:01:21]} 22. exf5 {[%clk 0:00:21]}  Qh4 {[%clk 0:01:21]} 23. f6 {[%clk 0:00:16]}  Rg5 {[%clk 0:01:21]} 24. Raf1 {[%clk 0:00:05]}  Qxh5 {[%clk 0:01:18]} 25. Qe3 {[%clk 0:00:04]}  Rag8 {[%clk 0:01:16]} 26. Qe4 {[%clk 0:00:03]}  Qg6 {[%clk 0:01:15]} 27. g3 {[%clk 0:00:03]}  Qxe4+ {[%clk 0:01:15]} 0-1


[Site "https://www.chess.com"]

[Event "Titled Tuesday Blitz May 4 2021"]
[White "Royal, Shreyas"]
[Black "Shvedova, Alexandra"]
[WhiteFideId "448869"]
[BlackFideId "54154782"]
[WhiteElo "1931"]
[BlackElo "1887"]
[Result "0-1"]
[Round "09"]
[TimeControl "180+1"]
[Date "2021.05.04"]
[WhiteClock "0:01:10"]
[BlackClock "0:00:36"]

1. d4 {[%clk 0:03:00]}  d5 {[%clk 0:03:00]} 2. c4 {[%clk 0:03:00]}  e6 {[%clk 0:03:00]} 3. Nf3 {[%clk 0:03:01]}  Nf6 {[%clk 0:03:00]} 4. g3 {[%clk 0:03:01]}  dxc4 {[%clk 0:02:59]} 5. Bg2 {[%clk 0:03:01]}  Bb4+ {[%clk 0:02:59]} 6. Bd2 {[%clk 0:03:00]}  a5 {[%clk 0:02:59]} 7. O-O {[%clk 0:02:59]}  O-O {[%clk 0:02:55]} 8. Qc2 {[%clk 0:02:58]}  Bxd2 {[%clk 0:02:53]} 9. Nbxd2 {[%clk 0:02:59]}  b5 {[%clk 0:02:53]} 10. a4 {[%clk 0:02:57]}  c6 {[%clk 0:02:52]} 11. b3 {[%clk 0:02:57]}  cxb3 {[%clk 0:02:51]} 12. Nxb3 {[%clk 0:02:58]}  b4 {[%clk 0:02:45]} 13. Ne5 {[%clk 0:02:57]}  Nd5 {[%clk 0:02:42]} 14. Nc5 {[%clk 0:02:52]}  f6 {[%clk 0:02:29]} 15. Nc4 {[%clk 0:02:31]}  Na6 {[%clk 0:02:14]} 16. Qb3 {[%clk 0:02:09]}  Kh8 {[%clk 0:01:22]} 17. Ne3 {[%clk 0:01:31]}  Nxc5 {[%clk 0:01:07]} 18. dxc5 {[%clk 0:01:30]}  Nc3 {[%clk 0:00:53]} 19. Bxc6 {[%clk 0:01:30]}  Nxe2+ {[%clk 0:00:52]} 20. Kh1 {[%clk 0:01:30]}  Nd4 {[%clk 0:00:52]} 21. Qc4 {[%clk 0:01:20]}  Nxc6 {[%clk 0:00:51]} 22. Rad1 {[%clk 0:01:20]}  Qc7 {[%clk 0:00:51]} 23. f3 {[%clk 0:01:20]}  Ne5 {[%clk 0:00:48]} 24. Qe4 {[%clk 0:01:20]}  Bb7 {[%clk 0:00:47]} 25. Qf4 {[%clk 0:01:19]}  Qxc5 {[%clk 0:00:42]} 26. Rc1 {[%clk 0:01:18]}  Qb6 {[%clk 0:00:39]} 27. g4 {[%clk 0:01:17]}  Nd3 {[%clk 0:00:38]} 28. Qc7 {[%clk 0:01:14]}  Qxe3 {[%clk 0:00:37]} 29. Rc4 {[%clk 0:01:10]}  Bxf3+ {[%clk 0:00:36]} 0-1


[Site "https://www.chess.com"]